bitfinex-derivatives/quotes_BNBF0:USTF0_20241230
["timestamp","ask_amount","ask_price","bid_price","bid_amount"]
[1735521532343,0.28577552,699.85,699.05,0.55374056]
[1735521532647,0.28577552,699.85,698.62,1.28119154]
[1735521532648,0.28577552,699.85,699.06,0.55374056]
[1735521532848,0.28577552,699.85,699.07,0.55374056]
[1735521533051,0.28577552,699.85,699.08,0.55374056]
[1735521533245,0.28577552,699.85,699.09,0.55374056]
[1735521533549,0.28577552,699.85,699.1,0.55374056]
[1735521533752,0.28577552,699.85,699.11,0.55374056]
[1735521534046,0.28577552,699.85,699.12,0.55374056]
[1735521534249,0.28577552,699.85,699.13,0.55374056]
[1735521534449,0.28577552,699.85,699.14,0.55374056]
[1735521534649,0.28577552,699.85,699.15,0.55374056]
[1735521534850,0.28577552,699.85,699.16,0.55374056]
[1735521535150,0.28577552,699.85,699.17,0.55374056]
[1735521535348,0.28577552,699.85,699.18,0.55374056]
[1735521535548,0.28577552,699.85,699.19,0.55374056]
[1735521535850,0.28577552,699.85,699.2,0.55374056]
[1735521536049,0.28577552,699.85,699.21,0.55374056]
[1735521536249,0.28577552,699.85,699.22,0.55374056]
[1735521536450,0.28577552,699.85,698.93,1.06765961]
[1735521536451,0.28577552,699.85,699.23,0.55374056]
[1735521536652,0.28577552,699.85,699.24,0.55374056]
[1735521537049,0.28577552,699.85,699.25,0.55374056]
[1735521537250,0.28577552,699.85,698.92,1.06765961]
[1735521537452,0.28577552,699.85,698.93,0.5537504]
[1735521537751,0.28577552,699.85,698.94,0.5537504]
[1735521537952,1.07222319,700.52,698.95,0.5537504]
[1735521538153,8.44962108,709.14,698.96,0.5537504]
[1735521538154,0.28550627,700.51,698.96,0.5537504]
[1735521538452,0.28550627,700.51,698.97,0.5537504]
[1735521538646,0.28550627,700.51,698.98,0.5537504]
[1735521538850,0.28550627,700.51,698.99,0.5537504]
[1735521539048,0.28550627,700.51,699.0,0.5537504]
[1735521539349,0.28550627,700.51,699.01,0.5537504]
[1735521539550,0.28550627,700.51,699.02,0.5537504]
[1735521539750,0.28550627,700.51,698.68,1.06765961]
[1735521539751,0.28550627,700.51,699.03,0.5537504]
[1735521539953,0.28550627,700.51,699.04,0.5537504]
[1735521540153,0.28550627,700.51,699.05,0.5537504]
[1735521540352,0.28550627,700.51,699.06,0.5537504]
[1735521540549,0.28550627,700.51,699.07,0.5537504]
[1735521540747,0.28550627,700.51,699.08,0.5537504]
[1735521540950,0.28550627,700.51,699.09,0.5537504]
[1735521541152,0.28550627,700.51,699.1,0.5537504]
[1735521541353,0.28550627,700.51,699.11,0.5537504]
[1735521541554,0.28550627,700.51,698.84,1.06765961]
[1735521541555,0.28550627,700.51,699.12,0.5537504]
[1735521541755,0.28550627,700.51,699.13,0.5537147]
[1735521541955,0.28550627,700.51,699.14,0.5537147]
[1735521542155,0.28550627,700.51,699.15,0.5537147]
[1735521542357,0.28550627,700.51,699.16,0.5537147]
[1735521542557,0.28550627,700.51,699.17,0.5537147]
[1735521542750,0.28550627,700.51,699.18,0.5537147]
[1735521542954,0.28550627,700.51,699.19,0.5537147]
[1735521543157,0.28550627,700.51,699.2,0.83975588]
[1735521543357,0.28550627,700.51,699.21,0.83975179]
[1735521543660,0.28550627,700.51,699.22,0.5537147]
[1735521543859,0.28550627,700.51,699.23,0.83974361]
[1735521544054,0.28550627,700.51,699.24,0.5537147]
[1735521544359,0.28550627,700.51,699.25,0.5537147]
[1735521544557,0.28550627,700.51,699.26,0.28601664]
[1735521544754,0.28550627,700.51,699.26,0.83775262]
[1735521545058,0.28550627,700.51,699.27,0.55173598]
[1735521545258,0.28550627,700.51,699.26,0.28601664]
[1735521545461,0.28550627,700.51,699.27,0.55172923]
[1735521545662,0.28550627,700.51,699.28,0.55172923]
[1735521545958,0.28550627,700.51,699.29,0.8377336]
[1735521546160,0.28550627,700.51,699.3,0.83772951]
[1735521546360,0.28550627,700.51,699.31,0.55172923]
[1735521546659,0.28550627,700.51,699.32,0.83772133]
[1735521546959,0.28550627,700.51,699.33,0.83771724]
[1735521547157,0.28550627,700.51,699.34,0.55172923]
[1735521547361,0.28550627,700.51,699.35,0.55172923]
[1735521547662,0.28550627,700.51,699.36,0.55078498]
[1735521547852,0.28550627,700.51,699.37,0.55078498]
[1735521548060,0.28550627,700.51,699.38,0.55078498]
[1735521548360,0.28550627,700.51,699.39,0.55078498]
[1735521548560,0.28550627,700.51,699.4,0.55078498]
[1735521548761,0.28550627,700.51,699.41,0.55078498]
[1735521549061,0.28550627,700.51,699.42,0.55078498]
[1735521549268,0.28550627,700.51,699.43,0.55078498]
[1735521549458,0.28550627,700.51,699.44,0.55078498]
[1735521549659,0.28550627,700.51,699.45,0.55078498]
[1735521549860,0.28550627,700.51,699.46,0.55078498]
[1735521550162,0.28550627,700.51,699.47,0.55078498]
[1735521550459,0.28550627,700.51,699.48,0.55078498]
[1735521550661,1.07222319,701.52,699.49,0.54998029]
[1735521550867,0.26274973,701.51,699.5,0.54998029]
[1735521551056,0.26274973,701.51,699.51,0.54998029]
[1735521551257,0.26274973,701.51,699.52,0.54998029]
[1735521551462,0.28510741,701.49,699.53,0.54998029]
[1735521551658,0.28510741,701.49,699.54,0.54998029]
[1735521551960,0.26273336,701.48,699.55,0.54998029]
[1735521552263,0.26273336,701.48,699.56,0.54998029]
[1735521552462,0.26273336,701.48,699.57,0.54998029]
[1735521552665,0.26273336,701.48,699.58,0.54998029]
[1735521552860,0.26273336,701.48,699.59,0.54998029]
[1735521553061,0.26273336,701.48,699.6,0.54998029]
[1735521553262,0.26273336,701.48,699.61,0.54998029]
[1735521553462,0.2851196,701.46,699.62,0.54998029]
[1735521553662,0.26273336,701.45,699.63,0.54998029]
[1735521553867,0.26273336,701.45,699.64,0.54998029]
[1735521554067,0.26273336,701.45,699.65,0.54998029]
[1735521554264,0.26271528,701.44,699.66,0.54998029]
[1735521554463,0.26271528,701.44,699.67,0.54998029]
[1735521554662,0.26271528,701.44,699.68,0.54998029]
[1735521554863,0.26271528,701.43,699.69,0.54998029]
[1735521555059,0.26271528,701.43,699.7,0.54998029]
[1735521555365,0.26271528,701.42,699.71,0.54998029]
[1735521555567,0.26271528,701.45,699.72,0.54998029]
[1735521555864,0.26271528,701.44,699.73,0.54998029]
[1735521556061,0.26271528,701.45,699.74,0.54998029]
[1735521556269,0.26271528,701.44,699.75,0.54998029]
[1735521556560,0.26271528,701.43,699.33,0.28598801]
[1735521556765,0.26268859,701.43,699.76,0.54797457]
[1735521556964,0.26268859,701.42,699.77,0.54797457]
[1735521557163,0.26268859,701.45,699.78,0.54797457]
[1735521557364,0.26268859,701.45,699.79,0.54797457]
[1735521557663,0.26268859,701.44,699.8,0.54797457]
[1735521557860,0.26268859,701.43,699.81,0.54797457]
[1735521558061,0.26268859,701.45,699.82,0.54797457]
[1735521558265,0.26268859,701.45,699.33,0.28598801]
[1735521558266,0.26268859,701.44,699.83,0.54797457]
[1735521558563,0.26268859,701.43,699.84,0.54797457]
[1735521558865,0.26268859,701.45,699.85,0.54797457]
[1735521559065,0.26262503,701.44,699.86,0.54797457]
[1735521559267,0.26262503,701.44,699.87,0.54797457]
[1735521559568,0.26262503,701.43,699.88,0.54797457]
[1735521559865,0.26262503,701.45,699.89,0.54797457]
[1735521560067,0.26262503,701.44,699.9,0.54797457]
[1735521560260,0.26262503,701.44,699.33,0.28598801]
[1735521560261,0.26262503,701.43,699.91,0.54797457]
[1735521560463,0.26262503,701.42,699.92,0.54797457]
[1735521560665,0.2851196,701.46,699.93,0.54797457]
[1735521560864,0.26262233,701.45,699.94,0.54797457]
[1735521561060,0.2851318,701.43,699.95,0.54797457]
[1735521561261,0.262634,701.42,699.96,0.54797457]
[1735521561459,0.262634,701.42,699.97,0.54797457]
[1735521561660,0.262634,701.42,699.98,0.54797457]
[1735521561864,0.28514399,701.4,699.99,0.54797457]
[1735521562065,0.28514399,701.4,700.0,0.54797457]
[1735521562266,0.26268586,701.39,700.01,0.54797457]
[1735521562467,0.26268586,701.39,700.02,0.54797457]
[1735521562666,0.28514399,701.4,700.03,0.54797457]
[1735521562862,0.26266545,701.39,700.04,0.54797457]
[1735521563063,0.28515619,701.37,700.05,0.54797457]
[1735521563262,0.26266545,701.36,699.33,0.28598801]
[1735521563467,0.26266545,701.36,699.34,0.54607851]
[1735521563666,0.26266545,701.36,699.35,0.54607851]
[1735521563865,0.26266545,701.36,699.36,0.54607851]
[1735521564069,0.28515619,701.37,699.37,0.54607851]
[1735521564273,0.28515619,701.37,699.33,0.28598801]
[1735521564274,0.26270871,701.35,699.38,0.54607851]
[1735521564471,0.26270871,701.34,699.39,0.54607851]
[1735521564666,0.26270871,701.34,699.4,0.54607851]
[1735521564872,0.26270871,701.34,699.41,0.54607851]
[1735521565069,0.26270871,701.33,699.42,0.54607851]
[1735521565270,0.26270871,701.33,699.43,0.54607851]
[1735521565468,0.26270871,701.33,699.44,0.54607851]
[1735521565672,0.26270871,701.36,699.45,0.54586285]
[1735521565875,0.26270871,701.36,699.46,0.83179771]
[1735521566066,0.28516839,701.34,699.47,0.54586285]
[1735521566266,0.28516839,701.34,699.48,0.54586285]
[1735521566470,0.26270871,701.33,699.49,0.54586285]
[1735521566671,0.26270871,701.33,699.46,0.28593486]
[1735521566672,0.26270871,701.33,699.5,0.54586285]
[1735521566867,0.26270871,701.33,699.51,0.54586285]
[1735521567073,0.26275894,701.32,699.52,0.54586285]
[1735521567267,0.26275894,701.31,699.52,0.54586285]
[1735521567470,0.26275894,701.3,699.53,0.54586285]
[1735521567672,0.26275894,701.3,699.54,0.54586285]
[1735521568074,0.26275894,701.29,699.54,0.54586285]
[1735521568274,0.26275894,701.33,699.54,0.54586285]
[1735521568573,0.26275894,701.33,699.55,0.54586285]
[1735521568772,0.26275894,701.28,699.56,0.54586285]
[1735521568969,0.26275894,701.28,699.57,0.54586285]
[1735521569168,0.26275894,701.32,699.58,0.54586285]
[1735521569368,0.26275894,701.32,699.59,0.54586285]
[1735521569569,0.26275894,701.32,699.6,0.54586285]
[1735521569774,0.26275894,701.27,699.61,0.54586285]
[1735521569970,0.26275894,701.27,699.62,0.54586285]
[1735521570169,0.26275894,701.26,699.63,0.54586285]
[1735521570374,0.26275894,701.25,699.64,0.54586285]
[1735521570676,0.26275894,701.25,699.65,0.54586285]
[1735521570871,0.26275894,701.24,699.66,0.54586285]
[1735521571075,0.26275894,701.23,699.67,0.54586285]
[1735521571272,0.26275894,701.23,699.68,0.54586285]
[1735521571470,0.26275894,701.33,699.69,0.54586285]
[1735521571673,0.26275894,701.33,699.7,0.54586285]
[1735521571878,0.26275894,701.32,699.71,0.54586285]
[1735521572176,0.26275894,701.31,699.72,0.54625158]
[1735521572370,0.26275894,701.3,699.73,0.54625158]
[1735521572569,0.26275894,701.3,699.74,0.54625158]
[1735521572773,0.26275894,701.29,699.75,0.54625158]
[1735521572969,0.28516839,701.34,699.76,0.54625158]
[1735521572970,0.26275894,701.33,699.76,0.54625158]
[1735521573177,0.26275894,701.33,699.77,0.54625158]
[1735521573378,0.26275894,701.28,699.77,0.54625158]
[1735521573871,1.07222319,701.3,699.46,0.28593486]
[1735521573872,1.07222319,701.3,699.78,0.54566811]
[1735521574073,1.07222319,701.3,699.79,0.54566811]
[1735521574273,1.07222319,701.3,699.8,0.54566811]
[1735521574474,0.2626983,701.27,699.81,0.54566811]
[1735521574669,0.2626983,701.27,699.82,0.54566811]
[1735521574873,0.28520499,701.25,699.83,0.54566811]
[1735521575068,0.28520499,701.25,699.46,0.28593486]
[1735521575069,0.2626983,701.24,699.84,0.54566811]
[1735521575275,0.2626983,701.24,699.85,0.54566811]
[1735521575475,0.2626983,701.24,699.86,0.54566811]
[1735521575676,0.2626983,701.24,699.46,0.28593486]
[1735521575677,0.2626983,701.23,699.87,0.54566811]
[1735521575874,0.2626983,701.23,699.88,0.54566811]
[1735521576073,0.2626983,701.22,699.89,0.54566811]
[1735521576268,0.2626983,701.23,699.89,0.54566811]
[1735521576472,1.07222319,701.18,699.9,0.54566811]
[1735521576670,0.2627422,701.17,699.91,0.54566811]
[1735521576875,0.2627422,701.17,699.92,0.54566811]
[1735521577071,0.2627422,701.17,699.93,0.54566811]
[1735521577272,1.07222319,701.11,699.94,0.54566811]
[1735521577472,1.07222319,701.11,699.95,0.54566811]
[1735521577675,0.26273755,701.1,699.96,0.54639212]
[1735521577876,0.26273755,701.1,699.46,0.28593486]
[1735521578071,0.26273755,701.1,699.47,0.54636375]
[1735521578279,0.26273755,701.1,699.48,0.54636375]
[1735521578478,0.26273755,701.14,699.49,0.54636375]
[1735521578679,0.26273755,701.09,699.49,0.54636375]
[1735521578979,0.28524566,701.15,699.5,0.54636375]
[1735521579181,0.28524566,701.15,699.51,0.54636375]
[1735521579381,0.28524566,701.15,699.52,0.54636375]
[1735521579577,0.28524566,701.15,699.53,0.54636375]
[1735521579775,0.28524566,701.15,699.54,0.54636375]
[1735521579978,0.28524566,701.15,699.55,0.54636375]
[1735521580280,0.26264844,701.14,699.56,1.89991735]
[1735521580477,0.26264844,701.14,699.56,1.3535536]
[1735521580877,0.2852538,701.13,699.57,0.54647726]
[1735521581177,0.2852538,701.13,699.56,1.3535536]
[1735521581178,0.26264844,701.12,699.58,0.54647726]
[1735521581374,0.26268564,701.11,699.59,0.54647726]
[1735521581574,0.28526194,701.11,699.6,0.54647726]
[1735521581777,0.26268564,701.1,699.61,0.54647726]
[1735521581973,0.26268564,701.1,699.62,0.54647726]
[1735521582173,0.26268564,701.1,699.63,0.54647726]
[1735521582484,0.26268564,701.1,699.56,0.28589399]
[1735521582485,0.26268564,701.1,699.64,0.54647726]
[1735521582775,0.26268564,701.1,699.65,0.54647726]
[1735521582975,0.26268564,701.1,699.56,0.28589399]
[1735521582976,0.26268564,701.1,699.66,0.54725768]
[1735521583180,0.26268564,701.1,699.67,0.54725768]
[1735521583181,1.33490883,701.1,699.67,0.54725768]
[1735521583479,0.26268564,701.09,699.68,0.54725768]
[1735521583681,0.26268564,701.09,699.69,0.54725768]
[1735521583881,1.07222319,701.1,699.7,0.54725768]
[1735521584081,0.26272344,701.08,699.71,0.54725768]
[1735521584282,0.26272344,701.09,699.72,0.54725768]
[1735521584482,0.28527821,701.07,699.73,0.54725768]
[1735521584678,0.28527821,701.07,699.74,0.54725768]
[1735521584883,0.26272344,701.06,699.75,0.54725768]
[1735521585078,0.26272344,701.06,699.76,0.54725768]
[1735521585284,0.28528635,701.05,699.77,0.54725768]
[1735521585479,0.26272344,701.04,699.78,0.54725768]
[1735521585678,0.26272344,701.04,699.56,0.28589399]
[1735521585679,0.28529449,701.03,699.79,0.54725768]
[1735521585884,0.26272344,701.02,699.8,0.54725768]
[1735521586084,0.28530263,701.01,699.81,0.54725768]
[1735521586285,0.26272344,701.0,699.82,0.54725768]
[1735521586479,0.28530263,701.01,699.56,0.28589399]
[1735521586480,0.28531077,700.99,699.56,0.28589399]
[1735521586686,0.28531077,700.99,699.57,0.54815894]
[1735521586885,0.28531077,700.99,699.58,0.54815894]
[1735521587084,0.28531077,700.99,699.59,0.83404067]
[1735521587285,0.28531077,700.99,699.6,0.54815894]
[1735521587585,0.28531077,700.99,699.59,0.28588173]
[1735521587586,0.28531077,700.99,699.61,0.83403249]
[1735521587885,0.28531077,700.99,699.62,0.83402841]
[1735521588086,0.28531077,700.99,699.63,0.54815894]
[1735521588286,0.28531077,700.99,699.64,0.54815894]
[1735521588587,0.28531077,700.99,699.65,0.54815894]
[1735521588781,0.28531077,700.99,699.66,0.54815894]
[1735521588982,0.28531077,700.99,699.67,0.54815894]
[1735521589183,0.28531077,700.99,699.68,0.54815894]
[1735521589383,0.28531077,700.99,699.69,0.54815894]
[1735521589585,0.28531077,700.99,699.7,0.5485535]
[1735521589786,0.28531077,700.99,699.71,0.5485535]
[1735521589985,0.28531077,700.99,699.72,0.5485535]
[1735521590288,0.28531077,700.99,699.73,0.5485941]
[1735521590582,0.28531077,700.99,699.74,0.5485941]
[1735521590785,0.28531077,700.99,699.75,0.5485941]
[1735521590984,0.28531077,700.99,699.76,0.5485941]
[1735521591186,0.28531077,700.99,699.77,0.5485941]
[1735521591386,0.28531077,700.99,699.78,0.5485941]
[1735521591681,0.28531077,700.99,699.62,0.28586947]
[1735521591881,0.28531077,700.99,699.79,0.54870401]
[1735521592085,0.28531077,700.99,699.8,0.54870401]
[1735521592386,0.28531077,700.99,699.81,0.54870401]
[1735521592585,0.28531077,700.99,699.82,0.54870401]
[1735521592787,0.28531077,700.99,699.83,0.54870401]
[1735521592981,0.28531077,700.99,699.84,0.54870401]
[1735521593180,0.28531077,700.99,699.85,0.54870401]
[1735521593486,0.28531077,700.99,699.86,0.54870401]
[1735521593682,0.28531077,700.99,699.87,0.54870401]
[1735521593884,0.28531077,700.99,699.88,0.54870401]
[1735521594086,0.28531077,700.99,699.89,0.54870401]
[1735521594389,0.28531077,700.99,699.9,0.54870401]
[1735521594588,0.28531077,700.99,699.91,0.54870401]
[1735521594781,0.28531077,700.99,699.92,0.54870401]
[1735521594986,0.28531077,700.99,699.93,0.54870401]
[1735521595284,0.28531077,700.99,699.94,0.54870401]
[1735521595483,0.28531077,700.99,699.95,0.54870401]
[1735521595686,0.28531077,700.99,699.96,0.55087443]
[1735521595888,0.28531077,700.99,699.97,0.55087443]
[1735521596089,0.28531077,700.99,699.98,0.55087443]
[1735521596389,0.28531077,700.99,699.99,0.55087443]
[1735521596589,0.28531077,700.99,700.0,0.55087443]
[1735521596790,0.28531077,700.99,700.01,0.55087443]
[1735521596984,0.28531077,700.99,700.02,0.55087443]
[1735521597187,0.28531077,700.99,700.03,0.55087443]
[1735521597384,0.28531077,700.99,700.04,0.55087443]
[1735521597587,0.28531077,700.99,700.05,0.55087443]
[1735521597782,0.28531077,700.99,700.06,0.55087443]
[1735521598087,0.28531077,700.99,700.07,0.55087443]
[1735521598285,0.28531077,700.99,700.08,0.55087443]
[1735521598483,0.28531077,700.99,700.09,0.55087443]
[1735521598791,0.28531077,700.99,700.1,0.55087443]
[1735521599092,0.28531077,700.99,700.11,0.55087443]
[1735521599297,0.28531077,700.99,700.12,0.55166744]
[1735521599590,0.28531077,700.99,700.13,0.55166744]
[1735521599785,0.28531077,700.99,700.14,0.55166744]
[1735521599985,0.28531077,700.99,700.15,0.55166744]
[1735521600190,0.28531077,700.99,700.16,0.55166744]
[1735521600391,0.28531077,700.99,700.17,0.55166744]
[1735521600693,0.28531077,700.99,699.62,0.28586947]
[1735521600694,0.28531077,700.99,700.18,0.55166744]
[1735521600886,0.28531077,700.99,700.19,0.55166744]
[1735521601086,0.28531077,700.99,700.2,0.55166744]
[1735521601292,0.28531077,700.99,699.62,0.28586947]
[1735521601293,0.28531077,700.99,700.21,0.55177785]
[1735521601594,0.28531077,700.99,700.22,0.55177785]
[1735521601791,0.28531077,700.99,700.23,0.55177785]
[1735521601990,0.28531077,700.99,700.24,0.55166336]
[1735521602186,0.28531077,700.99,700.25,0.55166336]
[1735521602390,0.28531077,700.99,700.26,0.55166336]
[1735521602687,0.28531077,700.99,700.27,0.55166336]
[1735521602890,0.28531077,700.99,700.28,0.55166336]
[1735521603087,0.28531077,700.99,700.29,0.55166336]
[1735521603292,0.28531077,700.99,700.3,0.55166336]
[1735521603491,0.28531077,700.99,700.31,0.55166336]
[1735521603691,0.28531077,700.99,700.32,0.55166336]
[1735521603892,0.28531077,700.99,699.62,0.28586947]
[1735521603893,0.28531077,700.99,700.33,0.55166336]
[1735521604094,0.28531077,700.99,700.34,0.55166336]
[1735521604295,0.28531077,700.99,700.35,0.55166336]
[1735521604795,0.28531077,700.99,699.62,0.28586947]
[1735521604796,0.28531077,700.99,700.36,0.55166336]
[1735521604991,0.28531077,700.99,700.37,0.55166336]
[1735521605190,0.28531077,700.99,700.38,0.55166336]
[1735521605389,0.28531077,700.99,700.39,0.55166336]
[1735521605595,0.28531077,700.99,700.4,0.55166336]
[1735521605895,0.28531077,700.99,700.41,0.55166336]
[1735521606091,0.28531077,700.99,700.42,0.55166336]
[1735521606298,0.28531077,700.99,700.43,0.55166336]
[1735521606597,0.28531077,700.99,700.44,0.55166336]
[1735521606797,0.28531077,700.99,700.45,0.55284216]
[1735521606998,0.28531077,700.99,700.46,0.55284216]
[1735521607199,0.28531077,700.99,700.47,0.55284216]
[1735521607396,0.28531077,700.99,700.48,0.55283499]
[1735521607597,0.28531077,700.99,700.49,0.55283499]
[1735521607797,0.28531077,700.99,700.5,0.55283499]
[1735521607998,0.28531077,700.99,700.51,0.55283499]
[1735521608199,0.28531077,700.99,700.52,0.55283499]
[1735521608399,0.28531077,700.99,700.53,0.55283499]
[1735521608598,0.28531077,700.99,700.54,0.55283499]
[1735521608795,0.28531077,700.99,700.55,0.55283499]
[1735521609001,0.28531077,700.99,700.56,0.55283499]
[1735521609205,0.28531077,700.99,699.43,1.06765961]
[1735521609206,0.28531077,700.99,700.57,0.55283499]
[1735521609502,0.28531077,700.99,700.58,0.55283499]
[1735521609703,0.28531077,700.99,700.59,0.55283499]
[1735521609901,0.28531077,700.99,700.6,0.5528554]
[1735521610101,0.28531077,700.99,700.61,0.5528554]
[1735521610303,0.28531077,700.99,700.62,0.5528554]
[1735521610502,0.28531077,700.99,700.63,0.5528554]
[1735521610701,0.28531077,700.99,700.64,0.5528554]
[1735521610902,0.28531077,700.99,700.65,0.5528554]
[1735521611104,0.28531077,700.99,700.66,0.55297027]
[1735521611304,0.28531077,700.99,700.67,0.55297027]
[1735521611502,0.28531077,700.99,699.55,1.80401209]
[1735521611800,0.28531077,700.99,699.63,0.55299831]
[1735521612003,0.28531077,700.99,699.64,0.55299831]
[1735521612304,0.28531077,700.99,699.65,0.55299831]
[1735521612604,0.28531077,700.99,699.66,0.55299831]
[1735521612904,0.28531077,700.99,699.67,0.55299831]
[1735521613107,0.28531077,700.99,699.68,0.55299831]
[1735521613302,0.28531077,700.99,699.69,0.55299831]
[1735521613605,0.28531077,700.99,699.7,0.55299831]
[1735521613906,0.28531077,700.99,699.71,0.55299831]
[1735521614106,0.28531077,700.99,699.72,0.55299831]
[1735521614308,0.28531077,700.99,699.73,0.55299831]
[1735521614605,0.28531077,700.99,699.74,0.55299831]
[1735521614805,0.28531077,700.99,699.59,0.28588173]
[1735521614806,0.28531077,700.99,699.75,0.55299831]
[1735521614999,0.28531077,700.99,699.76,0.55299831]
[1735521615203,0.28531077,700.99,699.77,0.55299831]
[1735521615399,0.28531077,700.99,699.78,0.55299831]
[1735521615706,0.28531077,700.99,699.79,0.55299831]
[1735521615901,0.28531077,700.99,699.8,0.55339968]
[1735521616106,0.28531077,700.99,699.81,0.55339968]
[1735521616408,0.28531077,700.99,699.64,1.06765961]
[1735521616704,0.28531077,700.99,699.65,0.55348303]
[1735521616899,0.28531077,700.99,699.66,0.55348303]
[1735521617206,0.28531077,700.99,699.67,0.55348303]
[1735521617399,0.28531077,700.99,699.62,0.28586947]
[1735521617400,0.28531077,700.99,699.68,0.55348303]
[1735521617603,0.28531077,700.99,699.69,0.55348303]
[1735521617803,0.28531077,700.99,699.7,0.55348303]
[1735521618000,0.28531077,700.99,699.62,0.28586947]
[1735521618205,0.28531077,700.99,699.63,0.55341593]
[1735521618399,0.28531077,700.99,699.64,0.55341593]
[1735521618605,0.28531077,700.99,699.62,0.28586947]
[1735521618606,0.28531077,700.99,699.65,0.55341593]
[1735521618906,0.28531077,700.99,699.66,0.55341593]
[1735521619104,0.28531077,700.99,699.67,0.55341593]
[1735521619305,0.28531077,700.99,699.68,0.55341593]
[1735521619504,0.28531077,700.99,699.69,0.55341593]
[1735521619702,0.28531077,700.99,699.7,0.55341593]
[1735521620000,0.28531077,700.99,699.71,0.55341593]
[1735521620207,0.28531077,700.99,699.72,0.55341593]
[1735521620407,0.28531077,700.99,699.73,0.55341593]
[1735521620600,0.28531077,700.99,699.74,0.55341593]
[1735521620801,0.28531077,700.99,699.62,0.28586947]
[1735521620802,0.28531077,700.99,699.75,0.55341593]
[1735521621106,0.28531077,700.99,699.76,0.55341593]
[1735521621305,0.28531077,700.99,699.62,0.28586947]
[1735521621505,0.28531077,700.99,699.63,0.55367801]
[1735521621705,0.28531077,700.99,699.64,0.55360818]
[1735521622002,0.28531077,700.99,699.65,0.55360818]
[1735521622207,0.28531077,700.99,699.66,0.55360818]
[1735521622408,0.28531077,700.99,699.67,0.55360818]
[1735521622610,0.28531077,700.99,699.68,0.55360818]
[1735521622805,0.28531077,700.99,699.69,0.55360818]
[1735521623001,0.28531077,700.99,699.7,0.55360818]
[1735521623205,0.28531077,700.99,699.71,0.55360818]
[1735521623405,0.28531077,700.99,699.72,0.55360818]
[1735521623609,0.28531077,700.99,699.73,0.55360818]
[1735521623809,0.28531077,700.99,699.74,0.55360818]
[1735521624009,0.28531077,700.99,699.75,0.55360818]
[1735521624209,0.28531077,700.99,699.76,0.55360818]
[1735521624509,0.28531077,700.99,699.77,0.55360818]
[1735521624708,0.28531077,700.99,699.78,0.55360818]
[1735521624907,0.28531077,700.99,699.79,0.55360818]
[1735521625109,0.28531077,700.99,699.8,0.55298564]
[1735521625408,0.28531077,700.99,699.81,0.55298564]
[1735521625605,0.28531077,700.99,699.82,0.55298564]
[1735521625903,0.28531077,700.99,699.83,0.55298564]
[1735521626108,0.28531077,700.99,699.84,0.55298564]
[1735521626309,0.28531077,700.99,699.85,0.55298564]
[1735521626510,0.28531077,700.99,699.86,0.55298564]
[1735521626708,0.28531077,700.99,699.87,0.55298564]
[1735521626910,0.28531077,700.99,699.88,0.55298564]
[1735521627110,0.28531077,700.99,699.89,0.55298564]
[1735521627311,0.28531077,700.99,699.9,0.55273711]
[1735521627512,0.28531077,700.99,699.91,0.55273711]
[1735521627718,0.28531077,700.99,699.92,0.55273711]
[1735521627918,0.28531077,700.99,699.93,0.55273711]
[1735521628118,0.28531077,700.99,699.94,0.55273711]
[1735521628316,0.28531077,700.99,699.95,0.55273711]
[1735521628518,0.28531077,700.99,699.65,4.60591681]
[1735521628519,0.28531077,700.99,699.96,0.55273711]
[1735521628715,0.28531077,700.99,699.97,0.55273711]
[1735521628915,0.28531077,700.99,699.98,0.55273711]
[1735521629114,0.28531077,700.99,699.99,0.55273711]
[1735521629318,0.28531077,700.99,700.0,0.55273711]
[1735521629519,0.28531077,700.99,700.01,0.55273711]
[1735521629821,0.28531077,700.99,700.02,0.55273711]
[1735521630020,0.28531077,700.99,700.03,0.55273711]
[1735521630315,0.28531077,700.99,700.04,0.55273711]
[1735521630620,0.28531077,700.99,700.05,0.55273711]
[1735521630819,0.28531077,700.99,700.06,0.55273711]
[1735521631118,0.28531077,700.99,700.07,0.55273711]
[1735521631519,0.28531077,700.99,700.08,0.55273711]
[1735521631719,0.28531077,700.99,700.09,0.55273711]
[1735521632018,0.28531077,700.99,700.1,0.55273711]
[1735521632213,0.28531077,700.99,700.11,0.55273711]
[1735521632415,0.28531077,700.99,700.12,0.55273711]
[1735521632612,0.28531077,700.99,700.13,0.55273711]
[1735521632815,0.28531077,700.99,700.14,0.55273711]
[1735521633012,0.28531077,700.99,699.84,1.06765961]
[1735521633013,0.28531077,700.99,700.15,0.55273711]
[1735521633219,0.28531077,700.99,700.16,0.55273711]
[1735521633516,0.28531077,700.99,700.17,0.55273711]
[1735521633720,0.28531077,700.99,700.18,0.55273711]
[1735521633919,0.28531077,700.99,700.19,0.55273711]
[1735521634115,0.28531077,700.99,699.66,1.06765961]
[1735521634321,0.28531077,700.99,699.67,0.55362657]
[1735521634524,0.28531077,700.99,699.68,0.55362657]
[1735521634721,0.28531077,700.99,699.62,1.94709306]
[1735521634918,0.28531077,700.99,699.63,0.55371942]
[1735521635214,0.28531077,700.99,699.64,0.55371942]
[1735521635420,0.28531077,700.99,699.65,1.62137903]
[1735521635621,0.28531077,700.99,699.66,0.55371942]
[1735521635920,0.28531077,700.99,699.67,0.55371942]